Cogmind - Beta 11 @@@ ROGUE MODE // 2022.04.15 @ 17:16:53 Player: Kiks Result: Self-destructed Performance ------------- Evolutions (1) 500 Regions Visited (3) 600 Robots Destroyed (25) 125 Value Destroyed (703) 703 Prototype IDs (0) 0 Alien Tech Used (0) 0 Bonus (0) 0 TOTAL SCORE: 1928 Bonus ------- None Cogmind --------- Core Integrity 81/400 Matter 240/300 Energy 237/250 System Corruption 0% Temperature Cool (24) Movement Hovering (112) Ox1 Location -9/Storage Parts ------- > --- POWER (1) -------- Ion Engine > --- PROPULSION (3) --- Improved Hover Unit Improved Hover Unit Improved Hover Unit > --- UTILITY (2) ------ Large Storage Unit Drone Bay (1/2) > --- WEAPON (3) ------- Improved Light Cannon > --- INVENTORY (15) --- Aluminum Leg Improved Aluminum Leg Peak State ------------ > --- POWER ------------ Ion Engine > --- PROPULSION ------- Improved Hover Unit Improved Hover Unit Improved Hover Unit > --- UTILITY ---------- Large Storage Unit Drone Bay > --- WEAPON ----------- Heavy Assault Rifle Improved Light Cannon > --- INVENTORY -------- Aluminum Leg Improved Aluminum Leg [Rating: 17] Favorites ----------- Power Ion Engine Engine Ion Engine Propulsion Light Treads Treads Light Treads Leg Aluminum Leg Hover Unit Improved Hover Unit Utility Large Storage Unit Device Drone Bay Storage Large Storage Unit Processor Signal Interpreter Weapon Beam Rifle Energy Gun Beam Rifle Ballistic Gun Light Assault Rifle Ballistic Cannon Improved Light Cannon Build | -11 -10 -9 -9 ------- Run | Scr Mat Mat Sto Slots Evolved 2 | . . 2 . Power . | . . . . Propulsion 1 | . . 1 . Utility . | . . . . Weapon 1 | . . 1 . Parts Attached 34 | 5 3 19 7 Power 4 | . 1 2 1 Engine 4 | . 1 2 1 Core . | . . . . Reactor . | . . . . Propulsion 15 | 2 . 10 3 Treads 5 | . . 5 . Leg 4 | 2 . 2 . Wheel . | . . . . Hover 6 | . . 3 3 Flight . | . . . . Utility 4 | 1 1 1 1 Device 1 | . . . 1 Storage 2 | 1 . 1 . Processor 1 | . 1 . . Hackware . | . . . . Protection . | . . . . Artifact . | . . . . Weapon 11 | 2 1 6 2 Energy Gun 6 | 2 . 4 . Energy Cannon . | . . . . Ballistic Gun 4 | . 1 2 1 Ballistic Cannon 1 | . . . 1 Launcher . | . . . . Special Weapon . | . . . . Impact Weapon . | . . . . Slashing Weapon . | . . . . Piercing Weapon . | . . . . Special Melee Weapon . | . . . . Unidentified Prototypes . | . . . . Parts Lost 9 | . . 7 2 Power . | . . . . Propulsion 2 | . . 2 . Utility . | . . . . Weapon 7 | . . 5 2 Highest Loss Streak 3 | . . 3 2 To Critical Strikes . | . . . . Average Slot Usage (%) 86 | . 84 89 70 Engine 11 | . 12 11 11 Treads 12 | . . 18 . Leg 12 | . 28 10 . Hover 4 | . . . 33 Storage 11 | . 14 11 11 Processor 5 | . 1 7 . Energy Gun 20 | . 17 23 10 Ballistic Gun 6 | . 10 6 . Naked Turns . | . . . . Heaviest Build 36 | 8 12 36 36 Greatest Support 60 | 20 20 60 21 Greatest Overweight (x) 4 | . . 4 1 Average Overweight (x) . | . . . 1 Largest Inventory Capacity 15 | 8 8 15 15 Average Capacity 12 | 7 8 13 15 Most Carried 8 | 5 6 8 7 Average Carried 3 | 3 4 4 2 Final Capacity 15 | 8 8 15 15 Final Carried 8 | 5 6 8 2 Class Distribution -------------------- 46% | Mutant 24% | Gunner 23% | Scavenger-Gunner 4% | Scavenger-Mutant Dominant Class ---------------- Mutant | -10/Materials Gunner | -9/Materials Mutant | -9/Storage Resources | -11 -10 -9 -9 ----------- Run | Scr Mat Mat Sto Matter Collected 609 | 176 134 299 . Remotely . | . . . . Salvage Created 1036 | . 248 788 . Parts 49 | . 20 29 . Haulers Intercepted 2 | . 1 1 . Recyclers Shooed 2 | . 1 1 . Parts Field Recycled . | . . . . Retrieved Matter . | . . . . Parts Self-Destructed . | . . . . Prevented . | . . . . Kills | -11 -10 -9 -9 ------- Run | Scr Mat Mat Sto Combat Hostiles Destroyed 19 | . 6 13 . Guns 18 | . 5 13 . AOE 1 | . 1 . . Classes Destroyed 6 | . 4 2 . Hauler 2 | . 1 1 . Recycler 2 | . . 2 . Watcher 2 | . 2 . . Swarmer 3 | . 3 . . Grunt 11 | . 3 8 . Sentry 5 | . . 5 . Best Kill Streak 5 | . 5 4 . Combat Bots Only 3 | . 3 3 . Max Kills in Single Turn 2 | . 1 2 . Gunslinging 1 | . . 1 . Exploded 1 | . 1 . . Melee . | . . . . Uniques/NPCs Destroyed . | . . . . Combat | -11 -10 -9 -9 -------- Run | Scr Mat Mat Sto Damage Taken 1788 | . 209 1237 342 Core 369 | . 50 266 53 Absorbed by Shields . | . . . . Core Remaining (%) 90 | 100 80 . . Volleys Fired 98 | . 37 59 2 Largest 3 | . 2 3 1 Hottest 152 | . 80 152 40 Shots Fired 217 | . 72 143 2 Gun 217 | . 72 143 2 Cannon . | . . . . Launcher . | . . . . Special . | . . . . Kinetic 68 | . 33 35 . Thermal 145 | . 35 108 2 Explosive . | . . . . Electromagnetic 4 | . 4 . . Robot Hit Streak 10 | . 10 10 1 Robot Miss Streak 6 | . 6 4 . Penetration Max . | . . . . Secondary Targets 2 | . . 2 . Max Gunslinging Chain 1 | . . 1 . Shots Hit Robots 123 | . 35 87 1 Core Hits 48 | . 16 32 . Critical Kills . | . . . . Critical Parts Destroyed . | . . . . Critical Strikes 5 | . . 5 . Burn 5 | . . 5 . Melee Attacks . | . . . . Impact . | . . . . Slashing . | . . . . Piercing . | . . . . Sneak Attacks . | . . . . Combat Hostiles . | . . . . Follow-up Attacks . | . . . . Damage Inflicted 1588 | . 419 1159 10 Guns 1556 | . 387 1159 10 Cannons . | . . . . Explosions 32 | . 32 . . Melee . | . . . . Ramming . | . . . . Kinetic 302 | . 103 199 . Thermal 1233 | . 263 960 10 Explosive . | . . . . Electromagnetic 53 | . 53 . . Impact . | . . . . Slashing . | . . . . Piercing . | . . . . Highest Corruption . | . . . . Average Corruption . | . . . . Corruption Purged . | . . . . Corruption Blocked . | . . . . Overload Shots . | . . . . Overflow Damage . | . . . . Projectiles . | . . . . Explosions . | . . . . Melee . | . . . . Knockbacks . | . . . . Impact . | . . . . Kinetic . | . . . . Secondary . | . . . . Self-Inflicted Damage 23 | . 23 . . Shots 1 | . 1 . . Rammed . | . . . . Targets Rammed . | . . . . Kicked . | . . . . Crushed . | . . . . Highest Temperature 562 | . 102 562 . Average Temperature 152 | . 27 198 . Received Heat Transfer 573 | . 30 450 93 Effects 16 | . . 16 . Shutdowns 4 | . . 4 . Energy Bleed 2 | . . 2 . Interference 2 | . . 2 . Matter Decay 2 | . . 2 . Short Circuit 1 | . . 1 . Damage (minor) 1 | . . 1 . Damage (major) 2 | . . 2 . Damage (core) 2 | . . 2 . Siege Activations . | . . . . Robots Corrupted . | . . . . Combat Hostiles . | . . . . Parts Fried . | . . . . Impact Corruptions . | . . . . Robots Melted . | . . . . Combat Hostiles . | . . . . Parts Melted 3 | . . 3 . Heat Transferred 3370 | . 575 2770 25 Parts Sabotaged . | . . . . Parts Stolen . | . . . . Parts Stripped . | . . . . Power Chain Reactions 1 | . 1 . . Missiles Intercepted . | . . . . Alert | -11 -10 -9 -9 ------- Run | Scr Mat Mat Sto Peak Influence 312 | . 198 312 150 Initial 114 | . . 83 114 Average 163 | . 125 192 122 Maximum Alert Level 1 | . . 1 . Low Security (%) 60 | 100 100 39 100 Level 1 39 | . . 60 . Level 2 . | . . . . Level 3 . | . . . . Level 4 . | . . . . Level 5 . | . . . . High Security . | . . . . Max Security . | . . . . Squads Dispatched 5 | . 2 3 . Investigation 1 | . 1 . . Extermination . | . . . . Reinforcement 4 | . 1 3 . Assault . | . . . . Garrison . | . . . . Intercept . | . . . . Searches Triggered . | . . . . Construction Impeded . | . . . . Haulers Reinforced . | . . . . Active Scanning Responses . | . . . . Cargo Convoy Interrupts . | . . . . Stealth | -11 -10 -9 -9 --------- Run | Scr Mat Mat Sto Distress Signals 6 | . 3 1 2 Communications Jammed . | . . . . Distress Signals . | . . . . Times Spotted 47 | . 13 22 12 Peak Tracking Total 11 | . 5 6 11 Tactical Retreats . | . . . . Traps | -11 -10 -9 -9 ------- Run | Scr Mat Mat Sto Traps Triggered 4 | . . 4 . Indirectly . | . . . . Trap Hack Attempts . | . . . . Triggered . | . . . . Disarmed . | . . . . Reprogrammed . | . . . . Reused . | . . . . Traps Extracted . | . . . . Installed . | . . . . Triggered . | . . . . Machines | -11 -10 -9 -9 ---------- Run | Scr Mat Mat Sto Machines Disabled . | . . . . Max in Single Turn . | . . . . Machines Sabotaged . | . . . . Garrisons Compromised . | . . . . Overloaded Fab Kills . | . . . . Hacking | -11 -10 -9 -9 --------- Run | Scr Mat Mat Sto Machines Accessed 7 | . 2 2 3 Terminals 7 | . 2 2 3 Fabricators . | . . . . Repair Stations . | . . . . Recycling Units . | . . . . Scanalyzers . | . . . . Garrison Access . | . . . . Total Hacks 17 | . 8 4 5 Successful 8 | . 2 1 5 Failed 9 | . 6 3 . Catastrophic . | . . . . Database Lockouts . | . . . . Manual 16 | . 8 4 4 Terminals 17 | . 8 4 5 Fabricators . | . . . . Repair Stations . | . . . . Recycling Units . | . . . . Scanalyzers . | . . . . Garrison Access . | . . . . Terminal Hacks 3 | . . . 3 Open Door 1 | . . . 1 Level Access Points 1 | . . . 1 Branch Access Points 1 | . . . 1 Fabricator Hacks . | . . . . Repair Station Hacks . | . . . . Recycling Unit Hacks . | . . . . Scanalyzer . | . . . . Garrison Access Hacks . | . . . . Unauthorized Hacks 5 | . 2 1 2 Terminals 5 | . 2 1 2 Botnet 5 | . 2 1 2 Fabricators . | . . . . Repair Stations . | . . . . Recycling Units . | . . . . Scanalyzers . | . . . . Garrison Access . | . . . . Data Cores Recovered . | . . . . Used . | . . . . Hacking Detections 6 | . 2 2 2 Full Trace Events 2 | . 2 . . Feedback Events . | . . . . Feedback Blocked . | . . . . Robot Schematics Acquired . | . . . . Robots Built . | . . . . Authchips . | . . . . Time . | . . . . Total Robot Build Rating . | . . . . Part Schematics Acquired . | . . . . Parts Built . | . . . . Authchips . | . . . . Time . | . . . . Total Part Build Rating . | . . . . Parts Repaired . | . . . . Time . | . . . . Parts Recycled . | . . . . Recycled Matter . | . . . . Retrieved Matter . | . . . . Retrieved Components . | . . . . Parts Scanalyzed . | . . . . Part Schematics Acquired . | . . . . Parts Damaged . | . . . . Bothacking | -11 -10 -9 -9 ------------ Run | Scr Mat Mat Sto Used RIF Installer . | . . . . Robots Hacked . | . . . . Non-combat . | . . . . Combat . | . . . . Robot Hacks Applied . | . . . . Relay Couplers Released . | . . . . Fabnet Peak Effective % . | . . . . Robots Rewired . | . . . . Allies Hacked . | . . . . Hacks Repelled . | . . . . Allies | -11 -10 -9 -9 -------- Run | Scr Mat Mat Sto Total Allies . | . . . . Largest Group . | . . . . Highest-Rated Group . | . . . . Highest-Rated Ally . | . . . . Total Orders 1 | . . . 1 EXPLORE 1 | . . . 1 Ally Attacks . | . . . . Total Damage . | . . . . Kills . | . . . . Allies Corrupted . | . . . . Allies Melted . | . . . . Intel | -11 -10 -9 -9 ------- Run | Scr Mat Mat Sto Robot Analysis Total . | . . . . Derelict Logs Recovered . | . . . . Drone Launches 2 | . . . 2 Drone Recoveries 1 | . . . 1 Exploration | -11 -10 -9 -9 ------------- Run | Scr Mat Mat Sto Turns Passed 1161 | 53 233 761 114 Spaces Moved 576 | 40 89 360 87 Core 13 | 13 . . . Treads 188 | . . 188 . Legs 278 | 27 89 162 . Wheels . | . . . . Hover 97 | . . 10 87 Flight . | . . . . Fastest Speed 50 | 50 120 112 112 Average Speed 131 | 97 120 142 112 Slowest Speed 300 | 120 120 300 112 Overloaded Moves . | . . . . Propulsion Burnouts . | . . . . Robots Hopped . | . . . . Cave-ins Triggered . | . . . . Exploration Rate (%) 25 | 4 23 38 35 Regions Visited 3 Branch Regions 1 Pre-discovered Areas . | . . . . Known Exits Taken 1 | . 1 . . Unknown Exits Taken 2 | 1 . 1 . Scrap Searched . | . . . . Spaces Dug . | . . . . Terrain Destroyed 2 | . 2 . . Melee . | . . . . Projectile . | . . . . AOE 2 | . 2 . . Terrain Rammed . | . . . . Walls Destroyed . | . . . . Machines Disabled . | . . . . Actions | -11 -10 -9 -9 --------- Run | Scr Mat Mat Sto Total 799 | 54 150 494 101 Wait 56 | . 18 38 . Move 573 | 39 88 359 87 Hop . | . . . . Pick Up 20 | 10 3 7 . Fast Attach 19 | . 1 15 3 Attach 10 | 5 2 2 1 Detach . | . . . . Swap 5 | . . 2 3 Drop 18 | . 1 12 5 Fire 98 | . 37 59 2 Melee . | . . . . Ram . | . . . . Kick . | . . . . Crush . | . . . . Escape Stasis . | . . . . Rewire . | . . . . Trap . | . . . . Miscellaneous . | . . . . Route ------- -11/Scrapyard -10/Materials -9/Materials (discovered 3 exits: *Mat / *Sto x2) -9/Storage (discovered 2 exits: Mat / Rec) History --------- Turn | Location | Event 6 | -11/Scrapyard | Discovered new exit (range 16) 54 | -11/Scrapyard | Entered Materials 271 | -10/Materials | Discovered new exit (range 15) 286 | -10/Materials | Identified exit to Materials 287 | -10/Materials | Entered another Materials area 287 | -9/Materials | Evolved 2 slots: Propulsion x1, Weapon x1 308 | -9/Materials | Build established: Mutant 754 | -9/Materials | Core integrity fell below 50% 878 | -9/Materials | Discovered new exit (range 5) 984 | -9/Materials | Discovered new exit (range 14) 993 | -9/Materials | Discovered new exit (range 12) 1048 | -9/Materials | Entered Storage 1079 | -9/Storage | Lost 3 parts (1n2w) 1100 | -9/Storage | Identified exit to Recycling 1122 | -9/Storage | Identified exit to Materials 1162 | -9/Storage | Self-destructed Last Messages --------------- >>Trojan(Botnet) Trojan loaded successfully. Testing... Terminal linked with 1 system. Awaiting botnet instructions. >>Access(Main) Found 1 level access point to Materials: (62,65) Map updated. 01125_ K-01 Serf collects debris. 01133_ Drone destroyed. 01135_ K-01 Serf collects debris. 01137_ W-16 Scout sends out distress signal. 01150_ Drone retrieved by Drone Bay. 01155_ Acquired Imp. Light Cannon. 01156_ C-30 ARC bursts open, deploying its payload. 01156_ S-10 Pest unfolds itself. 01158_ Sml. Laser destroyed. 01161_ Acquired Hvy. Assault Rifle. 01162_ Hvy. Assault Rifle destroyed. Map ----- +----------------------------------------------------+ | | | | | | | | | | | | | | | | | ?????????????????????????????????????????????????? | | ??########???????????????????????????????????????? | | ?##T#!!!!#???????????????????????????????????????? | | ?# #??????#####????????????????????????????? | | ?# # !!!#??????# ####?????????????????????????? | | ## ######??????# ? ?????????????????????????? | | T##+#####???????# #?# ###??????????????????????? | | #??#######"#### # ????????##?????????????? | | #### % ## /????##### ?###??????????? | | T#"" """ ## #????# #??????????? | | ##### ##"" "R" ## ###### """ #??????????? | | # ##"T " " + # # """ #??>???????? | | # ##"" !!! ## # k# """ #??????????? | | # ##"" !!! ## # # #??????????? | | !! # #### !!! ## /Y # """ #??????????? | | ! + #??# ## # # """ #??????????? | | ! # ########+###### # # """ #??????????? | | # u Y kY /@ g# #??????????? | | / ####### sss####+####### / ""??? | | """ # #?????#Ys= + #?????? | | R" ### ###########?????##/### #?????? | | """ #?# #????????????????# ###+####+##?????? | | #?# #????????????????# #???????????????? | | #####?#/#????????????????# +???????????????? | | ??????# ??????????????? + #???????????????? | | ??????# "?????????????? #% #???????????????? | | ?????? "?????????????"" ## #???????????????? | | ??????# ""???????????"""??# #???????????????? | | ??????? ????????????"""??# #???????????????? | | ??????? ???????????? ???# #???????????????? | | ??????? ????????????#????# w #???????????????? | | ??????? ?????????????????# #???????????????? | | ???????##?????????????????# #???????????????? | | ?????????????????????????? ???????????????? | | ?????????????????????????? ???????????????? | | ?????????????????????????? ??????????????? | | ?????????????????????????########T#??????????????? | | ?????????????????????????????????????????????????? | | ?????????????????????????????????????????????????? | | ?????????????????????????????????????????????????? | | ?????????????????????????????????????????????????? | | ?????????????????????????????????????????????????? | +----------------------------------------------------+ Best States ------------- Heat Dissipation 28 Energy Generation 12 Energy Capacity 265 Matter Stores 300 Matter Capacity 300 Sight Range 16 Terrain Scan Density 10 Evasion (%) 55 Recoil Reduction 3 Item Schematics ----------------- None Robot Schematics ------------------ None Fabricated ------------ Nothing Alien Tech Used ----------------- None Achievements -------------- None Challenges ------------ None Game ------ Seed ExperimentalSigixPenetrator Manual? 0 Play Time 00:11:01 Cumulative 95.5 hours Start 2022.04.15 @ 17:06:53 End 2022.04.15 @ 17:16:53 Sessions 1 Manual Loads 0 Difficulty Rogue Special Mode None Game No. 55 Rogue 16 Adventurer 5 Explorer 34 Win Type - Total 18 Types 10/0/3/4/1/0/0/0/0 Lore% 68 Gallery% 64 Achievement% 70 Wizard Run 0 Options --------- ASCII 0 Keyboard 0 Movement Mouse Keybinds 0 Fullscreen 1 Font 18/Terminus Map View 76x50 Tactical HUD 1 Map Filters NONE Filters NONE Steam 1 RUN: 28f34c3f-c2ae-4196-81b6-e1e46d98ea3d